bitfinex/quotes_ETHUSD_20250403
["timestamp","ask_amount","ask_price","bid_price","bid_amount"]
[1743652232665,6.878,1821.6,1821.3,4.39242]
[1743652232872,6.878,1821.6,1821.2,4.39256]
[1743652233059,0.24735672,1821.5,1821.2,4.39256]
[1743652234392,0.24735672,1821.5,1821.2,8.78508]
[1743652235767,0.24735672,1821.5,1821.0,5.18047]
[1743652235963,0.8216,1821.4,1821.1,4.39292]
[1743652236762,6.12,1821.3,1821.1,4.39292]
[1743652237169,0.24361986,1821.2,1821.1,4.39292]
[1743652237371,6.36361986,1821.2,1821.1,4.39292]
[1743652239901,0.8317,1821.1,1820.9,4.39338]
[1743652240405,6.36257905,1821.0,1820.8,4.39351]
[1743652241696,0.8317,1820.9,1820.6,4.39392]
[1743652242001,6.36174292,1820.8,1820.6,4.39392]
[1743652249784,6.36174292,1820.8,1820.5,4.39429]
[1743652250836,10.84174292,1820.8,1820.5,4.39439]
[1743652250982,10.84174292,1820.8,1820.7,4.39391]
[1743652253831,6.36174292,1820.8,1820.7,4.39391]
[1743652254128,6.36174292,1820.8,1820.7,5.17921]
[1743652254299,6.36174292,1820.8,1820.7,4.39391]
[1743652256027,6.36174292,1820.8,1820.7,5.16651]
[1743652256228,6.36174292,1820.8,1820.7,6.122569]
[1743652258323,6.36174292,1820.8,1820.7,5.16651]
[1743652260907,0.24174292,1820.8,1820.7,5.22142795]
[1743652261213,6.12,1821.2,1821.1,4.39294]
[1743652261413,6.12,1821.3,1821.1,4.39294]
[1743652261811,6.12,1821.3,1821.1,8.78569]
[1743652262129,6.12,1821.4,1821.3,4.39246]
[1743652265200,6.12,1821.4,1821.2,4.3927]
[1743652265547,0.7688,1821.3,1820.9,8.78646]
[1743652265700,3.7688,1821.3,1820.9,8.78646]
[1743652266791,0.24105237,1821.2,1820.9,4.39323]
[1743652267106,0.7688,1821.1,1820.9,4.39323]
[1743652267309,0.24021627,1821.0,1820.9,4.39323]
[1743652269023,6.36021627,1821.0,1820.9,4.39323]
[1743652269828,6.36021627,1821.0,1820.8,4.39367]
[1743652270222,6.36021627,1821.0,1820.8,8.78734]
[1743652273717,6.36021627,1821.0,1820.9,4.39343]
[1743652277343,7.01589793,1821.0,1820.9,4.39343]
[1743652279851,7.01589793,1821.0,1820.8,4.39367]
[1743652280051,0.796,1820.9,1820.8,4.39367]
[1743652280450,1.0380965,1820.9,1820.8,4.39367]
[1743652280747,7.1580965,1820.9,1820.8,4.39367]
[1743652281322,6.3620965,1820.9,1820.8,4.39367]
[1743652289157,6.3620965,1820.9,1820.8,5.18127]
[1743652289357,6.3620965,1820.9,1820.8,6.138788]
[1743652291966,6.3620965,1820.9,1820.8,11.41270263]
[1743652292135,6.3620965,1820.9,1820.8,11.357788]
[1743652293455,6.5e-06,1820.9,1820.8,11.357788]
[1743652293631,0.22097711,1820.9,1820.8,11.357788]
[1743652293836,6.12,1821.4,1821.3,4.39246]
[1743652295842,6.12,1821.5,1821.4,4.39222]
[1743652296098,6.12,1821.5,1821.4,5.16252]
[1743652296877,6.12,1821.5,1821.4,5.21741616]
[1743652297044,10.6,1821.8,1821.7,5.1618]
[1743652297248,6.12,1821.8,1821.7,6.117146]
[1743652299498,6.12,1821.8,1821.7,4.3915]
[1743652300044,6.12,1821.8,1821.5,4.39187]
[1743652300351,0.8218,1821.6,1821.4,4.39219]
[1743652300557,6.12,1821.7,1821.6,4.39174]
[1743652301235,6.12,1821.8,1821.7,4.3915]
[1743652302378,6.12,1821.8,1821.6,4.39174]
[1743652302379,6.12,1821.8,1821.6,8.78348]
[1743652302542,6.12,1821.8,1821.7,4.3915]
[1743652302735,6.12,1821.8,1821.6,4.39174]
[1743652303371,6.742,1821.8,1821.5,4.39196]
[1743652303572,0.8003,1821.7,1821.3,4.39244]
[1743652303785,6.12,1821.6,1821.3,4.39244]
[1743652305181,6.12,1821.6,1821.3,8.78471]
[1743652305781,6.12,1821.6,1821.4,4.39218]
[1743652309671,6.12,1821.6,1821.5,4.39198]
[1743652310490,6.12,1821.6,1821.4,4.39218]
[1743652311700,0.22446616,1821.5,1821.4,4.39218]
[1743652312268,0.7811,1821.4,1821.2,4.39266]
[1743652312669,0.22390393,1821.3,1821.2,4.39266]
[1743652312886,6.34390393,1821.3,1821.2,4.39266]
[1743652313097,6.12,1821.3,1821.2,4.39266]
[1743652313295,6.34396075,1821.3,1821.2,4.39266]
[1743652313683,6.34396075,1821.3,1821.1,4.39279]
[1743652314507,6.34396075,1821.3,1821.1,8.78557]
[1743652315106,6.34396075,1821.3,1821.1,4.39278]
[1743652315268,6.34396075,1821.3,1821.1,8.78562]
[1743652315674,6.34396075,1821.3,1821.1,4.39278]
[1743652315910,6.34396075,1821.3,1821.1,8.78563]
[1743652316774,6.34396075,1821.3,1821.1,4.39278]
[1743652317802,6.34396075,1821.3,1821.0,4.39318]
[1743652318108,0.8016,1821.2,1821.0,8.78636]
[1743652318304,0.8016,1821.2,1821.0,4.39318]
[1743652318475,0.22178957,1821.1,1821.0,4.39318]
[1743652321088,6.34178957,1821.1,1820.8,4.39364]
[1743652321301,0.7955,1821.0,1820.8,4.39364]
[1743652321681,0.22202941,1820.9,1820.8,4.39364]
[1743652321884,0.7955,1821.0,1820.8,4.39364]
[1743652322385,0.22145499,1820.9,1820.8,4.39364]
[1743652324819,0.22145499,1820.9,1820.8,5.272372]
[1743652324983,6.12,1821.1,1820.9,4.39323]
[1743652325185,6.12,1821.1,1821.0,5.17089]
[1743652325596,6.12,1821.1,1821.0,10.38789]
[1743652326706,6.31886694,1821.1,1821.0,10.38789]
[1743652326895,6.31886694,1821.1,1821.0,11.13475827]
[1743652328091,6.12,1821.5,1821.4,4.39222]
[1743652328583,6.32044748,1821.5,1821.4,4.39222]
[1743652330208,6.32044748,1821.5,1821.4,9.60922]
[1743652332112,6.32044748,1821.5,1821.4,4.39222]
[1743652333220,6.32044748,1821.5,1821.4,5.270952]
[1743652334238,6.32044748,1821.5,1821.4,5.32584885]
[1743652334412,6.32044748,1821.5,1821.4,5.270952]
[1743652336638,6.32044748,1821.5,1821.4,6.051452]
[1743652337634,6.32044748,1821.5,1821.4,6.10634888]
[1743652340948,6.32044748,1821.5,1821.4,6.051452]
[1743652340949,0.20044748,1821.5,1821.4,6.051452]
[1743652341107,7.48e-06,1821.5,1821.4,6.1063398]
[1743652341312,0.18671562,1821.5,1821.4,6.051452]
[1743652341542,0.1,1821.9,1821.8,4.39126]
[1743652341750,0.8965,1821.9,1821.7,4.39142]
[1743652341907,0.8965,1821.9,1821.8,4.39126]
[1743652341908,0.29167106,1821.9,1821.8,4.39126]
[1743652342343,0.29167106,1821.9,1821.8,5.13812827]
[1743652344445,1.04277106,1821.9,1821.8,4.39126]
[1743652345645,1.04277106,1821.9,1821.7,4.39131]
[1743652345844,1.04277106,1821.9,1821.6,4.39172]
[1743652346482,0.7784,1821.8,1821.6,4.39172]
[1743652346642,0.7784,1821.8,1821.5,9.60678]
[1743652346833,0.19089296,1821.7,1821.5,13.99863]
[1743652347170,0.19089296,1821.7,1821.5,8.78363]
[1743652347371,0.19089296,1821.7,1821.5,4.39178]
[1743652347670,0.7897,1821.6,1821.5,4.39178]
[1743652348039,0.97907518,1821.6,1821.5,4.39178]
[1743652348938,0.97907518,1821.6,1821.4,4.39216]
[1743652349146,4.39218,1821.5,1821.1,4.39291]
[1743652349346,1.240818,1821.4,1821.0,4.39305]
[1743652349543,6.12,1821.3,1821.1,4.39277]
[1743652349946,0.18807986,1821.2,1821.1,4.39277]
[1743652351374,0.18807986,1821.2,1821.1,5.19527]
[1743652352242,0.18807986,1821.2,1821.1,5.25017345]
[1743652352437,0.18807986,1821.2,1821.1,6.15959835]
[1743652353270,0.18807986,1821.2,1821.1,11.37459835]
[1743652353673,6.12,1821.3,1821.2,4.3927]
[1743652353856,6.12,1821.3,1821.2,5.2231]
[1743652354056,10.6,1821.8,1821.7,4.3915]
[1743652354250,6.12,1821.8,1821.7,4.3915]
[1743652355050,6.12,1821.8,1821.6,4.3917]
[1743652355250,6.8203,1821.8,1821.5,4.39177]
[1743652355478,0.7579,1821.7,1821.5,4.39177]
[1743652356794,0.18829138,1821.6,1821.5,4.39177]
[1743652356991,0.18829138,1821.6,1821.4,4.39222]
[1743652358846,0.18829138,1821.6,1821.4,4.3922]
[1743652359378,0.18829138,1821.6,1821.4,4.39204]
[1743652359697,0.18829138,1821.6,1821.5,4.39198]
[1743652360369,0.18829138,1821.6,1821.4,4.39204]
[1743652360546,0.18829138,1821.6,1821.4,8.78405]
[1743652360747,0.18829138,1821.6,1821.5,4.39198]
[1743652364690,0.18829138,1821.6,1821.4,8.78412]
[1743652364998,0.7578,1821.5,1821.2,4.3925]
[1743652365205,0.7578,1821.4,1821.0,4.39299]
[1743652365501,0.7578,1821.3,1820.8,4.39357]
[1743652365664,0.7578,1821.1,1820.8,4.39357]
[1743652365853,0.18566443,1821.0,1820.8,4.39357]
[1743652366982,0.18566443,1821.0,1820.9,4.39333]
[1743652367166,0.18566443,1821.0,1820.9,5.27202]
[1743652367879,6.8778,1821.2,1821.0,4.39305]
[1743652368594,6.12,1821.2,1821.1,4.39294]
[1743652370049,6.12,1821.3,1821.1,4.44785064]
[1743652370310,6.12,1821.3,1821.2,4.3927]
[1743652370490,6.12,1821.4,1821.2,4.3927]
[1743652371703,0.18608568,1821.3,1821.2,4.3927]
[1743652372071,6.12,1821.4,1821.2,4.3925]
[1743652372248,6.12,1821.4,1821.3,4.39246]
[1743652373284,6.12,1821.4,1821.2,4.3925]
[1743652373596,6.12,1821.4,1821.1,4.39292]
[1743652375353,6.12,1821.4,1820.8,4.39354]
[1743652375354,3.8112,1821.3,1820.8,4.39354]
[1743652375578,0.8112,1821.1,1820.8,4.39354]
[1743652375984,0.8112,1821.1,1820.9,4.39342]
[1743652377109,6.12,1821.1,1821.0,4.39319]
[1743652377264,0.8095,1821.6,1821.4,4.39199]
[1743652377464,6.9295,1821.8,1821.5,4.39186]
[1743652379221,6.9295,1821.8,1821.4,4.39199]
[1743652379433,11.32076,1821.8,1821.4,4.39199]
[1743652379581,0.7857,1821.6,1821.3,9.60742]
[1743652379982,0.7857,1821.6,1821.3,13.9997]
[1743652380199,0.7857,1821.6,1821.3,9.60728]
[1743652380424,6.9057,1821.6,1821.3,9.60728]
[1743652380626,6.9057,1821.6,1821.4,4.39198]
[1743652380925,6.12,1821.6,1821.5,4.831178]
[1743652382793,6.12,1821.7,1821.6,4.39174]
[1743652383410,6.12,1821.7,1821.5,4.831178]
[1743652384009,6.12,1821.7,1821.6,4.39174]
[1743652384404,0.1,1821.9,1821.8,4.39126]
[1743652385564,0.1,1821.9,1821.8,4.44614428]
[1743652385698,0.8058,1822.5,1822.0,0.8304]
[1743652386050,6.12,1822.6,1822.4,8.77962]
[1743652386247,6.12,1822.7,1822.4,8.77962]
[1743652386462,6.12,1822.7,1822.5,4.38938]
[1743652386666,6.12,1822.8,1822.7,4.38909]
[1743652386959,6.12,1822.8,1822.5,5.214]
[1743652387172,6.9498,1822.8,1822.5,5.214]
[1743652387331,0.69498,1822.7,1822.5,5.214]
[1743652387538,0.69498,1822.7,1822.5,9.60355]
[1743652387916,6.9498,1822.8,1822.6,4.38933]
[1743652388257,6.9498,1822.8,1822.5,9.60355]
[1743652389210,11.33866,1822.8,1822.5,5.214]
[1743652389412,11.33866,1822.8,1822.3,8.77981]
[1743652389646,6.9498,1822.8,1822.3,8.77981]
[1743652389826,8.093641,1822.8,1822.3,8.77981]
[1743652390354,8.093641,1822.8,1822.4,4.38979]
[1743652392339,12.482571,1822.8,1822.2,5.15008]
[1743652392523,12.482571,1822.8,1822.3,4.38994]
[1743652393054,6.9498,1822.8,1822.3,5.08784505]
[1743652393242,6.12,1822.8,1822.7,4.38909]
[1743652394358,0.1,1822.9,1822.8,5.17425]
[1743652395147,0.28328607,1822.9,1822.8,5.17425]
[1743652395323,0.1,1822.9,1822.8,5.17425]
[1743652395529,0.28328607,1822.9,1822.8,6.10205522]
[1743652395738,0.1,1822.9,1822.8,6.10205522]
[1743652395956,0.28337716,1822.9,1822.8,6.10205522]
[1743652396127,0.1,1822.9,1822.8,6.10205522]
[1743652396328,0.28346824,1822.9,1822.8,6.10205522]
[1743652396529,0.1,1822.9,1822.8,6.10205522]
[1743652396734,0.28337716,1822.9,1822.8,6.10205522]
[1743652397227,0.28337716,1822.9,1822.8,5.31665522]
[1743652398159,0.28337716,1822.9,1822.7,9.60109]
[1743652398325,0.28337716,1822.9,1822.7,13.99018]
[1743652399164,0.28337716,1822.9,1822.8,4.38885]
[1743652401962,0.28337716,1822.9,1822.7,9.60109]
[1743652404534,0.28337716,1822.9,1822.7,5.212]
[1743652404862,0.28337716,1822.9,1822.6,8.77866]
[1743652405364,0.28337716,1822.9,1822.8,4.38885]
[1743652405565,0.28337716,1822.9,1822.7,4.38889]
[1743652408437,0.8013,1822.8,1822.5,4.38933]
[1743652408639,11.31034,1822.8,1822.3,9.59987]
[1743652408843,4.57271741,1822.7,1822.3,13.98982]
[1743652409055,0.18361741,1822.7,1822.4,4.44457949]
[1743652409354,0.18361741,1822.7,1822.4,4.38971]
[1743652409885,6.30361741,1822.7,1822.4,4.38971]
[1743652410254,7.45299615,1822.7,1822.4,4.38971]
[1743652410450,7.45299615,1822.7,1822.4,4.38968]
[1743652410765,7.45299615,1822.7,1822.5,4.38954]
[1743652410766,6.30361741,1822.7,1822.5,4.38954]
[1743652413090,6.30361741,1822.7,1822.4,4.38968]
[1743652414802,6.30361741,1822.7,1822.3,4.39005]
[1743652415003,10.69275741,1822.7,1822.3,4.39005]
[1743652416098,10.69275741,1822.7,1821.7,3.0]
[1743652416099,0.829,1822.5,1821.8,0.7741]
[1743652416299,0.829,1822.3,1821.8,5.9851]
[1743652416505,0.18213433,1822.2,1821.9,8.78174]
[1743652416906,0.18213433,1822.2,1822.1,5.19293]
[1743652417200,6.12,1822.4,1822.3,4.39005]
[1743652417503,6.8917,1822.6,1822.4,4.38981]
[1743652418704,6.8917,1822.6,1822.5,4.38957]
[1743652418705,6.12,1822.6,1822.5,4.38957]
[1743652419701,0.1,1822.9,1822.7,4.38907]
[1743652420379,0.8612,1822.9,1822.6,9.60529]
[1743652420578,0.8612,1822.9,1822.7,4.38909]
[1743652424023,5.24982,1822.9,1822.5,4.38955]
[1743652424399,11.36982,1822.9,1822.5,4.38955]
[1743652425620,6.9812,1822.9,1822.5,4.38937]
[1743652425926,0.1,1822.9,1822.8,4.38885]
[1743652426827,0.1,1822.9,1822.7,4.38899]
[1743652428310,0.1,1822.9,1822.8,4.38885]
[1743652430402,0.1,1822.9,1822.8,5.19705]
[1743652431839,0.28511424,1822.9,1822.8,5.19705]
[1743652432022,0.1,1822.9,1822.8,6.075036]
[1743652432220,0.28511424,1822.9,1822.8,6.075036]
[1743652434706,0.28511424,1822.9,1822.8,11.287036]
[1743652434900,0.28511424,1822.9,1822.8,6.075036]
[1743652435101,0.28511424,1822.9,1822.7,4.38899]
[1743652435526,1.06961424,1822.9,1822.7,4.38899]
[1743652435731,1.06961424,1822.9,1822.7,4.38898]
[1743652436540,0.28511424,1822.9,1822.8,4.38885]
[1743652438242,0.28511424,1822.9,1822.7,4.38898]
[1743652438403,0.28511424,1822.9,1822.4,4.38958]
[1743652438404,0.8023,1822.8,1822.4,4.38958]
[1743652438601,0.98696848,1822.8,1822.4,8.77928]
[1743652439424,0.98696848,1822.8,1822.5,4.3894]
[1743652439618,0.18466848,1822.8,1822.7,4.38909]
[1743652439837,6.22,1822.9,1822.7,4.38909]
[1743652440034,0.18442918,1822.8,1822.7,4.38909]
[1743652440218,6.22,1822.9,1822.7,4.38909]
[1743652440446,0.18442918,1822.8,1822.7,4.38909]
[1743652441143,6.22,1822.9,1822.7,4.38909]
[1743652441456,0.18452027,1822.8,1822.7,4.38909]
[1743652441755,6.22,1822.9,1822.7,4.38909]
[1743652441951,0.18452027,1822.8,1822.7,4.38909]
[1743652442336,6.22,1822.9,1822.7,4.38909]
[1743652442527,0.18452027,1822.8,1822.7,4.38909]
[1743652442726,6.22,1822.9,1822.7,4.38909]
[1743652442946,0.18452027,1822.8,1822.7,4.38909]
[1743652443124,0.18452027,1822.8,1822.7,5.11066362]
[1743652443325,6.22,1822.9,1822.8,4.38885]
[1743652443726,6.40456616,1822.9,1822.8,4.38885]
[1743652445956,6.40456616,1822.9,1822.8,5.16065]
[1743652447378,6.40456616,1822.9,1822.8,4.38885]
[1743652447862,6.40456616,1822.9,1822.8,5.33331523]
[1743652450032,0.28456616,1822.9,1822.8,6.13261523]
[1743652451051,0.28456616,1822.9,1822.8,6.18745465]
[1743652451258,0.28456616,1822.9,1822.8,6.13261523]
[1743652451462,0.28456616,1822.9,1822.8,6.18745705]
[1743652452066,6.67,1823.6,1822.8,9.18745705]
[1743652452264,6.67,1823.6,1823.5,5.15836]
[1743652452458,0.55,1823.6,1823.5,10.45119316]
[1743652452835,0.55,1823.6,1823.5,10.39636]
[1743652453672,0.55,1823.6,1823.5,9.62516]
[1743652453875,0.49512,1823.6,1823.5,9.62516]
[1743652454374,0.49512,1823.6,1823.5,4.38716]
[1743652454572,1.25602,1823.6,1823.4,4.38733]
[1743652455138,0.49512,1823.6,1823.5,4.38716]
[1743652456371,0.7609,1823.5,1823.4,4.38728]
[1743652457054,1.25602,1823.6,1823.4,4.38728]
[1743652459783,0.15837491,1823.5,1823.4,4.38728]
[1743652460804,0.15837491,1823.5,1823.4,6.07075577]
[1743652461174,0.49512,1823.6,1823.5,4.38716]
[1743652461373,0.49512,1823.6,1823.5,4.44199033]
[1743652461914,0.49512,1823.6,1823.5,5.65518791]
[1743652462209,0.63089029,1823.6,1823.5,5.65518791]
[1743652462583,0.63089029,1823.6,1823.5,6.39781241]
[1743652463892,0.63089029,1823.6,1823.5,5.98481483]
[1743652464080,0.63089029,1823.6,1823.5,11.1669845]
[1743652468337,0.63089029,1823.6,1823.5,11.57836926]
[1743652468501,0.49512,1823.6,1823.5,11.57836926]
[1743652476559,1e-05,1823.6,1823.5,14.57836926]
[1743652480951,0.1,1823.9,1823.8,5.15354]
[1743652481157,0.1,1823.9,1823.8,9.09132712]
[1743652482848,0.1,1823.9,1823.8,8.26941577]
[1743652483150,0.1,1823.9,1823.8,10.48541577]
[1743652483327,0.1,1823.9,1823.8,10.54023294]
[1743652483751,0.24248428,1823.9,1823.8,9.65725717]
[1743652485351,0.24248428,1823.9,1823.8,4.44125717]
[1743652487134,0.24248428,1823.9,1823.8,4.38644]
[1743652488527,0.24248428,1823.9,1823.8,4.4412629]
[1743652490863,0.24248428,1823.9,1823.8,4.38644]
[1743652496332,1.06748428,1823.9,1823.8,4.38644]
[1743652496751,0.24248428,1823.9,1823.8,4.38644]
[1743652499172,0.7906,1823.8,1823.5,4.387]
[1743652499483,0.7906,1823.8,1823.7,4.38668]
[1743652499782,0.1,1823.9,1823.8,4.38644]
[1743652499989,0.1,1823.9,1823.8,4.4412627]
[1743652500137,0.1,1823.9,1823.8,4.38644]
[1743652500338,0.1,1823.9,1823.8,4.4412627]
[1743652501065,0.1,1823.9,1823.8,5.2571627]
[1743652502464,0.1,1823.9,1823.8,9.6622535]
[1743652502665,0.1,1823.9,1823.8,9.60744]
[1743652502873,0.1,1823.9,1823.8,10.47815533]
[1743652503074,0.1,1823.9,1823.8,10.42334]
[1743652503274,0.1,1823.9,1823.8,11.904342]
[1743652503477,0.1,1823.9,1823.8,10.42334]
[1743652503673,0.1,1823.9,1823.8,10.47815205]
[1743652504280,0.1,1823.9,1823.8,10.42334]
[1743652505078,0.1,1823.9,1823.8,9.60744]
[1743652505463,0.22959986,1823.9,1823.8,9.60744]
[1743652505658,0.1,1823.9,1823.8,9.60744]
[1743652505859,0.22959986,1823.9,1823.8,9.61544]
[1743652506073,0.1,1823.9,1823.8,9.61544]
[1743652506279,0.22959986,1823.9,1823.8,9.61544]
[1743652506458,0.1,1823.9,1823.8,9.61544]
[1743652506658,0.22959986,1823.9,1823.8,9.61544]
[1743652507586,0.22959986,1823.9,1823.8,4.38644]
[1743652507788,0.22959986,1823.9,1823.8,9.61244]
[1743652507987,0.22959986,1823.9,1823.8,9.66725828]
[1743652510378,0.1,1823.9,1823.8,10.46215828]
[1743652511985,0.1,1823.9,1823.8,10.40734]
[1743652512191,0.1,1823.9,1823.8,10.46215221]
[1743652512988,0.1,1823.9,1823.8,6.07571221]
[1743652513190,0.1,1823.9,1823.8,10.46215221]
[1743652514593,0.1,1823.9,1823.8,13.46215221]
[1743652514791,0.1,1823.9,1823.8,13.40734]
[1743652519499,1e-05,1823.9,1823.8,13.40734]
[1743652521270,0.7999,1824.6,1824.1,5.1851]
[1743652521470,0.7999,1824.6,1824.5,4.38476]
[1743652521888,0.1,1824.9,1824.8,4.38404]
[1743652522379,0.8864,1824.9,1824.8,4.38404]
[1743652523194,0.8864,1824.9,1824.8,4.43883419]
[1743652523399,0.8864,1824.9,1824.8,4.38404]
[1743652524868,0.1,1824.9,1824.8,5.31566161]
[1743652527700,0.1,1824.9,1824.8,5.260868]
[1743652529172,0.1,1824.9,1824.8,5.31565314]
[1743652529387,0.1,1824.9,1824.8,5.260868]
[1743652529589,0.2381909,1824.9,1824.8,5.260868]
[1743652530685,0.1,1824.9,1824.8,5.31565536]
[1743652531787,0.1,1824.9,1824.8,5.260868]
[1743652531986,0.1,1824.9,1824.8,5.31565364]
[1743652533204,0.1,1824.9,1824.8,5.260868]
[1743652534210,0.1,1824.9,1824.8,5.31565231]
[1743652534508,0.1,1824.9,1824.8,5.260868]
[1743652537206,0.1,1824.9,1824.8,10.464868]
[1743652537411,0.8994,1824.9,1824.8,9.58804]
[1743652537582,1.03650034,1824.9,1824.8,9.58804]
[1743652538677,1.03650034,1824.9,1824.8,9.6428335]
[1743652538678,0.23710034,1824.9,1824.8,9.6428335]
[1743652539176,0.1,1824.9,1824.8,9.6428335]
[1743652539602,0.23742157,1824.9,1824.8,9.6428335]
[1743652542826,0.23742157,1824.9,1824.8,9.58804]
[1743652543846,0.23742157,1824.9,1824.8,9.64282804]
[1743652544028,0.23742157,1824.9,1824.8,9.58804]
[1743652544204,0.23742157,1824.9,1824.8,9.64282828]
[1743652544398,0.23742157,1824.9,1824.8,9.58804]
[1743652544848,0.23742157,1824.9,1824.8,9.64282736]
[1743652545338,0.23742157,1824.9,1824.8,9.58804]
[1743652545636,1.02952157,1824.9,1824.8,9.64283076]
[1743652546931,1.02952157,1824.9,1824.8,9.58804]
[1743652547147,1.02952157,1824.9,1824.8,9.64283463]
[1743652547936,1.02952157,1824.9,1824.8,9.58804]
[1743652548144,1.02952157,1824.9,1824.8,9.64283489]
[1743652548644,1.02952157,1824.9,1824.8,9.64283516]
[1743652548811,0.23742157,1824.9,1824.8,9.64283516]
[1743652554335,0.23742157,1824.9,1824.8,9.58804]
[1743652554830,0.23742157,1824.9,1824.8,4.38404]
[1743652555031,0.1,1824.9,1824.8,9.58804]
[1743652555236,0.23494609,1824.9,1824.8,9.6428313]
[1743652555747,0.23494609,1824.9,1824.8,9.58804]
[1743652556847,0.23494609,1824.9,1824.8,9.64283151]
[1743652557049,0.23494609,1824.9,1824.8,9.58804]
[1743652557648,0.23494609,1824.9,1824.8,9.64283156]
[1743652559625,0.23494609,1824.9,1824.8,9.58804]
[1743652560271,0.23494609,1824.9,1824.8,9.64282895]
[1743652561965,0.23494609,1824.9,1824.8,9.58804]
[1743652562267,0.23494609,1824.9,1824.8,9.64282917]
[1743652562653,0.1,1824.9,1824.8,9.64282917]
[1743652564770,0.23670365,1824.9,1824.8,9.64282917]
[1743652566721,0.23670365,1824.9,1824.8,9.58804]
[1743652566892,0.23670365,1824.9,1824.8,4.38404]
[1743652567197,0.99210365,1824.9,1824.8,9.64282991]
[1743652567492,0.7741,1824.6,1824.2,4.38529]
[1743652567655,1.289939,1824.6,1824.3,4.38522]
[1743652567845,0.13430797,1824.5,1824.4,4.38498]
[1743652568279,0.13430797,1824.5,1824.3,4.38522]
[1743652568941,0.13430797,1824.5,1824.2,8.77096]
[1743652568942,0.7741,1824.4,1824.2,8.77096]
[1743652569344,0.13402058,1824.3,1824.2,8.77096]
[1743652569587,0.13402058,1824.3,1824.1,4.3857]
[1743652569758,0.7741,1824.4,1824.1,4.4405151]
[1743652569963,0.13190475,1824.2,1824.1,4.4405151]
[1743652570162,0.7741,1824.4,1824.1,4.4405151]
[1743652570663,0.13232128,1824.3,1824.1,4.4405151]
[1743652571084,0.7741,1824.4,1824.2,4.38548]
[1743652571389,0.7741,1824.4,1824.2,4.38533]
[1743652571791,0.7741,1824.4,1824.3,4.38524]
[1743652574191,0.7741,1824.4,1824.2,4.38533]
[1743652574385,0.7741,1824.4,1824.1,4.38566]
[1743652574593,0.7741,1824.4,1824.1,4.4404717]
[1743652575193,0.7741,1824.4,1824.1,8.8260017]
[1743652576299,0.7741,1824.4,1824.1,8.77119]
[1743652576669,0.7741,1824.4,1824.1,4.44034511]
[1743652576874,0.7741,1824.4,1824.1,8.82594511]
[1743652577594,0.7741,1824.4,1824.1,8.77114]
[1743652578115,0.7741,1824.4,1824.1,8.82595512]
[1743652578404,0.7741,1824.4,1824.1,8.77114]
[1743652578602,0.7741,1824.4,1824.1,8.82595513]
[1743652579397,0.7741,1824.4,1824.1,4.44034513]
[1743652579592,0.7741,1824.4,1824.1,8.77115]
[1743652580300,0.7741,1824.4,1824.1,4.38553]
[1743652580464,0.7741,1824.4,1824.1,4.44034514]
[1743652580669,0.7741,1824.4,1824.1,4.38553]
[1743652580870,0.8153,1824.3,1824.0,9.60195]
[1743652581698,0.7526,1824.1,1824.0,9.60195]
[1743652582306,0.88075154,1824.1,1824.0,9.60195]
[1743652582603,0.88075154,1824.1,1824.0,4.38595]
[1743652583698,0.88075154,1824.1,1824.0,4.44077146]
[1743652583898,0.88075154,1824.1,1824.0,4.38595]
[1743652589206,0.88075154,1824.1,1823.9,13.98609]
[1743652590514,0.88075154,1824.1,1824.0,4.38596]
[1743652591314,0.88075154,1824.1,1823.9,9.60001]
[1743652591493,0.88075154,1824.1,1823.9,13.98611]
[1743652592114,0.88075154,1824.1,1824.0,4.38596]
[1743652593585,0.12815154,1824.1,1824.0,4.38596]
[1743652593885,0.8207,1824.3,1824.1,4.38559]
[1743652594788,0.8207,1824.3,1824.1,8.77119]
[1743652594992,0.8207,1824.3,1824.2,4.38548]
[1743652595317,0.8121,1824.5,1824.3,4.38523]
[1743652595615,1.50531,1824.5,1824.3,4.38523]
[1743652595822,0.8121,1824.5,1824.3,4.38523]
[1743652595984,0.8121,1824.5,1824.4,4.385]
[1743652596183,0.8121,1824.5,1824.3,8.77037]
[1743652596382,0.8121,1824.5,1824.3,4.38514]
[1743652596681,0.12638084,1824.4,1824.3,4.38514]
[1743652597428,0.12638084,1824.4,1824.3,10.47367854]
[1743652597617,0.12638084,1824.4,1824.3,11.28417854]
[1743652597807,7.0243,1824.9,1824.5,4.38467]
[1743652598220,7.0243,1824.9,1824.5,8.76934]
[1743652598528,7.0243,1824.9,1824.6,4.3845]
[1743652598730,7.0243,1824.9,1824.8,4.38404]
[1743652598899,7.0243,1824.9,1824.7,4.38419]
[1743652599100,7.0243,1824.9,1824.5,4.38459]
[1743652599322,7.0243,1824.9,1824.5,8.76922]
[1743652599830,8.1651,1824.9,1824.5,8.76922]
[1743652600200,0.8043,1824.8,1824.5,8.76922]
[1743652600429,0.8043,1824.8,1824.5,4.38459]
[1743652604130,0.8043,1824.8,1824.3,9.5921]
[1743652604131,0.8043,1824.8,1824.4,0.85710604]
[1743652604435,0.8043,1824.8,1824.6,4.3843]
[1743652605132,0.8043,1824.8,1824.5,4.38473]
[1743652605435,0.8043,1824.8,1824.5,8.82409103]
[1743652605805,0.8043,1824.8,1824.5,8.76929]
[1743652606206,0.8043,1824.8,1824.5,4.38456]
[1743652606900,5.20045,1824.7,1824.3,4.38506]
[1743652607103,0.8161,1824.6,1824.2,13.97675]
[1743652607328,0.8161,1824.6,1824.3,4.3852]
[1743652607533,0.8161,1824.6,1824.3,8.77027]
[1743652607732,0.8161,1824.6,1824.3,4.38507]
[1743652609307,1.336139,1824.6,1824.2,4.38548]
[1743652609719,5.720689,1824.6,1824.2,4.38548]